[Event "*** Titled Tuesday Blitz"]
[Site "Chess.com"]
[Date "2020.04.07"]
[Round "5"]
[White "1g41-0"]
[Black "Ceejay271"]
[Result "1-0"]
[WhiteElo "2502"]
[BlackElo "2297"]
[TimeControl "180+1"]
[EndTime "13:53:48 PDT"]
[Termination "1g41-0 won by checkmate"]

1. d4 {[%clk 0:03:00.9]} 1... Nf6 {[%clk 0:02:59.4]} 2. c4 {[%clk 0:02:58.6]}
2... e6 {[%clk 0:02:59.2]} 3. Nc3 {[%clk 0:02:56.6]} 3... Bb4 {[%clk 0:02:58.8]}
4. f3 {[%clk 0:02:57.2]} 4... d5 {[%clk 0:02:55]} 5. a3 {[%clk 0:02:56]} 5...
Be7 {[%clk 0:02:54.4]} 6. e4 {[%clk 0:02:54.8]} 6... dxe4 {[%clk 0:02:48.4]} 7.
fxe4 {[%clk 0:02:55.7]} 7... c5 {[%clk 0:02:48]} 8. d5 {[%clk 0:02:55.9]} 8...
exd5 {[%clk 0:02:47.7]} 9. exd5 {[%clk 0:02:56.8]} 9... O-O {[%clk 0:02:47.2]}
10. Nf3 {[%clk 0:02:57.3]} 10... Re8 {[%clk 0:02:44.9]} 11. Be2 {[%clk
0:02:57.6]} 11... Bg4 {[%clk 0:02:41.8]} 12. O-O {[%clk 0:02:56.9]} 12... Nbd7
{[%clk 0:02:41.1]} 13. d6 {[%clk 0:02:56.8]} 13... Bf8 {[%clk 0:02:40.7]} 14.
Nb5 {[%clk 0:02:57.3]} 14... Re6 {[%clk 0:02:26.5]} 15. Bf4 {[%clk 0:02:56.2]}
15... Re4 {[%clk 0:02:10.3]} 16. Bg3 {[%clk 0:02:52.6]} 16... Nh5 {[%clk
0:02:06.2]} 17. Bh4 {[%clk 0:02:47.8]} 17... Qb6 {[%clk 0:01:58.7]} 18. Bd3
{[%clk 0:02:30.7]} 18... Bxf3 {[%clk 0:01:53.9]} 19. Qxf3 {[%clk 0:02:30]} 19...
Rxh4 {[%clk 0:01:45.4]} 20. Qxf7+ {[%clk 0:02:24.9]} 20... Kh8 {[%clk
0:01:45.2]} 21. Qxd7 {[%clk 0:02:23.9]} 21... Rd8 {[%clk 0:01:35.6]} 22. Qf5
{[%clk 0:02:07.9]} 22... Nf6 {[%clk 0:01:29.4]} 23. Qe6 {[%clk 0:01:43.4]} 23...
Bxd6 {[%clk 0:01:23.4]} 24. Rxf6 {[%clk 0:01:37.6]} 24... Bxh2+ {[%clk
0:01:17.4]} 25. Kf1 {[%clk 0:01:34.4]} 25... gxf6 {[%clk 0:01:15.4]} 26. Qe7
{[%clk 0:01:13.1]} 26... Rxd3 {[%clk 0:01:04.8]} 27. Qf8# {[%clk 0:01:12.6]} 1-0

[Event "*** Titled Tuesday Blitz"]
[Site "Chess.com"]
[Date "2020.04.07"]
[Round "5"]
[White "ShadyH9"]
[Black "BeanScreen"]
[Result "0-1"]
[WhiteElo "2286"]
[BlackElo "2605"]
[TimeControl "180+1"]
[EndTime "13:53:52 PDT"]
[Termination "BeanScreen won by resignation"]

1. d4 {[%clk 0:02:56.8]} 1... d5 {[%clk 0:02:59.4]} 2. Nf3 {[%clk 0:02:55.6]}
2... Nf6 {[%clk 0:03:00.1]} 3. g3 {[%clk 0:02:55.8]} 3... Bf5 {[%clk 0:03:00.8]}
4. c4 {[%clk 0:02:55]} 4... e6 {[%clk 0:03:00.8]} 5. Nc3 {[%clk 0:02:54.2]} 5...
c6 {[%clk 0:03:00.7]} 6. Nh4 {[%clk 0:02:54]} 6... Be4 {[%clk 0:03:00.3]} 7. f3
{[%clk 0:02:54]} 7... Bg6 {[%clk 0:03:00.4]} 8. Qb3 {[%clk 0:02:54.4]} 8... Qb6
{[%clk 0:02:55.1]} 9. c5 {[%clk 0:02:54.5]} 9... Qc7 {[%clk 0:02:55.3]} 10. Bf4
{[%clk 0:02:54]} 10... Qc8 {[%clk 0:02:55.6]} 11. e4 {[%clk 0:02:54]} 11... dxe4
{[%clk 0:02:55.2]} 12. Nxg6 {[%clk 0:02:54]} 12... hxg6 {[%clk 0:02:55.5]} 13.
fxe4 {[%clk 0:02:54.5]} 13... Nh5 {[%clk 0:02:53.5]} 14. O-O-O {[%clk
0:02:34.8]} 14... Nxf4 {[%clk 0:02:50.1]} 15. gxf4 {[%clk 0:02:35.7]} 15... Be7
{[%clk 0:02:50.1]} 16. d5 {[%clk 0:01:49.7]} 16... cxd5 {[%clk 0:02:47.3]} 17.
exd5 {[%clk 0:01:50.6]} 17... exd5 {[%clk 0:02:43.9]} 18. Nxd5 {[%clk
0:01:50.4]} 18... Bxc5 {[%clk 0:02:36.6]} 19. Bb5+ {[%clk 0:01:46.2]} 19... Nc6
{[%clk 0:02:28.7]} 20. Rhe1+ {[%clk 0:01:30.5]} 20... Kf8 {[%clk 0:02:29]} 21.
Kb1 {[%clk 0:01:26.8]} 21... Rxh2 {[%clk 0:02:11.4]} 22. Ka1 {[%clk 0:01:16.9]}
22... Nd4 {[%clk 0:02:05.5]} 23. Qc4 {[%clk 0:00:41.7]} 23... Nc2+ {[%clk
0:02:05.4]} 24. Kb1 {[%clk 0:00:39]} 24... Nxe1 {[%clk 0:02:06.3]} 25. Rxe1
{[%clk 0:00:36]} 25... Qf5+ {[%clk 0:02:05.8]} 26. Ka1 {[%clk 0:00:34.8]} 26...
Qc2 {[%clk 0:02:05]} 0-1

[Event "*** Titled Tuesday Blitz"]
[Site "Chess.com"]
[Date "2020.04.07"]
[Round "5"]
[White "Konavets"]
[Black "jamengrand"]
[Result "1-0"]
[WhiteElo "3003"]
[BlackElo "2177"]
[TimeControl "180+1"]
[EndTime "13:54:01 PDT"]
[Termination "Konavets won by resignation"]

1. Nf3 {[%clk 0:03:00.9]} 1... d5 {[%clk 0:02:59.5]} 2. c4 {[%clk 0:02:53.5]}
2... d4 {[%clk 0:02:59]} 3. e3 {[%clk 0:02:53.9]} 3... Nc6 {[%clk 0:02:58.9]} 4.
b4 {[%clk 0:02:54.4]} 4... dxe3 {[%clk 0:02:56.3]} 5. fxe3 {[%clk 0:02:55.3]}
5... Nxb4 {[%clk 0:02:55.9]} 6. a3 {[%clk 0:02:55.5]} 6... Nc6 {[%clk
0:02:55.1]} 7. d4 {[%clk 0:02:56.4]} 7... e6 {[%clk 0:02:54.8]} 8. Bb2 {[%clk
0:02:54.9]} 8... Nf6 {[%clk 0:02:54.5]} 9. Bd3 {[%clk 0:02:55.6]} 9... Be7
{[%clk 0:02:53.8]} 10. O-O {[%clk 0:02:56.2]} 10... O-O {[%clk 0:02:24.5]} 11.
Nc3 {[%clk 0:02:55.9]} 11... Bd6 {[%clk 0:01:49]} 12. Ng5 {[%clk 0:02:53.9]}
12... h6 {[%clk 0:01:39.4]} 13. Nge4 {[%clk 0:02:53.8]} 13... Be7 {[%clk
0:01:39.4]} 14. Nxf6+ {[%clk 0:02:52.7]} 14... Bxf6 {[%clk 0:01:39.3]} 15. Ne4
{[%clk 0:02:53.3]} 15... Be7 {[%clk 0:01:37.8]} 16. Qh5 {[%clk 0:02:52.5]} 16...
f5 {[%clk 0:01:36.6]} 17. Ng3 {[%clk 0:02:51.6]} 17... Qe8 {[%clk 0:01:34.8]}
18. Qf3 {[%clk 0:02:51]} 18... Bd7 {[%clk 0:01:26.1]} 19. d5 {[%clk 0:02:50.5]}
19... Nd8 {[%clk 0:01:23.1]} 20. Nh5 {[%clk 0:02:48.1]} 20... e5 {[%clk
0:01:03.8]} 21. Bxe5 {[%clk 0:02:45.6]} 21... Bg5 {[%clk 0:01:03.5]} 22. Bxg7
{[%clk 0:02:45.4]} 22... Qxe3+ {[%clk 0:01:02.7]} 23. Qxe3 {[%clk 0:02:44.6]}
23... Bxe3+ {[%clk 0:01:02.4]} 24. Kh1 {[%clk 0:02:45.5]} 24... Rf7 {[%clk
0:00:58]} 25. Bc3 {[%clk 0:02:44.4]} 25... Bg5 {[%clk 0:00:53.3]} 26. Rae1
{[%clk 0:02:43.7]} 26... c6 {[%clk 0:00:44.6]} 27. g3 {[%clk 0:02:43.9]} 27...
cxd5 {[%clk 0:00:43.9]} 28. cxd5 {[%clk 0:02:44.8]} 28... b6 {[%clk 0:00:42.6]}
29. h4 {[%clk 0:02:44.5]} 29... Be7 {[%clk 0:00:40.3]} 30. d6 {[%clk 0:02:44.5]}
30... Bxd6 {[%clk 0:00:36.8]} 31. Bc4 {[%clk 0:02:45]} 31... Rc8 {[%clk
0:00:28.7]} 32. Nf6+ {[%clk 0:02:44.1]} 32... Kf8 {[%clk 0:00:28.2]} 33. Bxf7
{[%clk 0:02:45]} 33... Kxf7 {[%clk 0:00:19.1]} 34. Nxd7 {[%clk 0:02:45.3]} 34...
Rxc3 {[%clk 0:00:18.6]} 35. Rxf5+ {[%clk 0:02:46]} 35... Kg6 {[%clk 0:00:17.8]}
36. Ref1 {[%clk 0:02:46.2]} 36... Rxg3 {[%clk 0:00:16.8]} 37. h5+ {[%clk
0:02:46.2]} 37... Kg7 {[%clk 0:00:16.5]} 38. Nf6 {[%clk 0:02:47.1]} 38... Rh3+
{[%clk 0:00:15.2]} 39. Kg2 {[%clk 0:02:47.6]} 39... Rh2+ {[%clk 0:00:15.1]} 40.
Kf3 {[%clk 0:02:48.1]} 40... Ne6 {[%clk 0:00:15.4]} 41. Ne8+ {[%clk 0:02:48]}
41... Kg8 {[%clk 0:00:15.4]} 42. Rg1+ {[%clk 0:02:47.6]} 42... Kh7 {[%clk
0:00:14.6]} 43. Nf6+ {[%clk 0:02:45.5]} 1-0

[Event "*** Titled Tuesday Blitz"]
[Site "Chess.com"]
[Date "2020.04.07"]
[Round "5"]
[White "GianmarcoVaR"]
[Black "david_gomez"]
[Result "1-0"]
[WhiteElo "2635"]
[BlackElo "2432"]
[TimeControl "180+1"]
[EndTime "13:54:06 PDT"]
[Termination "GianmarcoVaR won by resignation"]

1. d4 {[%clk 0:03:00.9]} 1... c6 {[%clk 0:02:42.4]} 2. c4 {[%clk 0:02:52.4]}
2... d5 {[%clk 0:02:43.3]} 3. Nf3 {[%clk 0:02:51.2]} 3... Nf6 {[%clk 0:02:43]}
4. e3 {[%clk 0:02:48.7]} 4... e6 {[%clk 0:02:42.8]} 5. b3 {[%clk 0:02:47.1]}
5... Be7 {[%clk 0:02:42.2]} 6. Bb2 {[%clk 0:02:46.3]} 6... O-O {[%clk
0:02:42.1]} 7. Bd3 {[%clk 0:02:46.6]} 7... Nbd7 {[%clk 0:02:42]} 8. O-O {[%clk
0:02:45.9]} 8... b6 {[%clk 0:02:42]} 9. Qc2 {[%clk 0:02:44.3]} 9... Bb7 {[%clk
0:02:37.4]} 10. Rd1 {[%clk 0:02:43.5]} 10... Rc8 {[%clk 0:02:34.2]} 11. Nc3
{[%clk 0:02:41.7]} 11... c5 {[%clk 0:02:32.9]} 12. cxd5 {[%clk 0:02:40.6]} 12...
cxd4 {[%clk 0:02:30.1]} 13. dxe6 {[%clk 0:02:20.4]} 13... dxc3 {[%clk
0:02:29.8]} 14. exd7 {[%clk 0:02:20.8]} 14... cxb2 {[%clk 0:02:28.8]} 15. dxc8=Q
{[%clk 0:02:18.8]} 15... bxa1=Q {[%clk 0:02:16]} 16. Qxb7 {[%clk 0:02:18.1]}
16... Qxd1+ {[%clk 0:01:09.6]} 17. Qxd1 {[%clk 0:02:15.8]} 17... a5 {[%clk
0:01:08.7]} 18. h3 {[%clk 0:02:04.3]} 18... Bc5 {[%clk 0:01:07]} 19. Ne5 {[%clk
0:02:00]} 19... Qe8 {[%clk 0:00:59.8]} 20. Nxf7 {[%clk 0:01:53.1]} 20... Bxe3
{[%clk 0:00:46.3]} 21. fxe3 {[%clk 0:01:48.5]} 21... Qxe3+ {[%clk 0:00:45.4]}
22. Kh1 {[%clk 0:01:48.8]} 22... Nh5 {[%clk 0:00:39.5]} 23. Bxh7+ {[%clk
0:01:33.3]} 1-0

[Event "*** Titled Tuesday Blitz"]
[Site "Chess.com"]
[Date "2020.04.07"]
[Round "5"]
[White "marianokar"]
[Black "saraswathii"]
[Result "1-0"]
[WhiteElo "2368"]
[BlackElo "2220"]
[TimeControl "180+1"]
[EndTime "13:54:08 PDT"]
[Termination "marianokar won by resignation"]

1. e4 {[%clk 0:03:00.9]} 1... c5 {[%clk 0:02:59.1]} 2. Nf3 {[%clk 0:03:00.2]}
2... e6 {[%clk 0:02:57.2]} 3. d4 {[%clk 0:03:01.1]} 3... cxd4 {[%clk 0:02:57.4]}
4. Nxd4 {[%clk 0:03:02]} 4... Nf6 {[%clk 0:02:57.9]} 5. Bd3 {[%clk 0:02:56.9]}
5... Nc6 {[%clk 0:02:56.8]} 6. Nxc6 {[%clk 0:02:53.9]} 6... bxc6 {[%clk
0:02:57.7]} 7. O-O {[%clk 0:02:53.8]} 7... d5 {[%clk 0:02:57.1]} 8. Nd2 {[%clk
0:02:48.8]} 8... Bd6 {[%clk 0:02:55.8]} 9. Re1 {[%clk 0:02:45.7]} 9... Qc7
{[%clk 0:02:54.6]} 10. h3 {[%clk 0:02:38.7]} 10... O-O {[%clk 0:02:53.6]} 11. c4
{[%clk 0:02:21.1]} 11... c5 {[%clk 0:02:36.3]} 12. exd5 {[%clk 0:02:11.2]} 12...
exd5 {[%clk 0:02:35.6]} 13. cxd5 {[%clk 0:02:11.7]} 13... Bb7 {[%clk 0:02:30.8]}
14. Nc4 {[%clk 0:01:11.9]} 14... Bxd5 {[%clk 0:02:24.2]} 15. Bg5 {[%clk
0:01:12.3]} 15... Be7 {[%clk 0:00:51.6]} 16. Bxf6 {[%clk 0:01:07]} 16... Bxf6
{[%clk 0:00:50.6]} 17. Qh5 {[%clk 0:00:58]} 1-0

[Event "*** Titled Tuesday Blitz"]
[Site "Chess.com"]
[Date "2020.04.07"]
[Round "5"]
[White "A-Fier"]
[Black "korbul"]
[Result "1-0"]
[WhiteElo "2823"]
[BlackElo "2571"]
[TimeControl "180+1"]
[EndTime "13:54:18 PDT"]
[Termination "A-Fier won by resignation"]

1. e4 {[%clk 0:03:00.9]} 1... c5 {[%clk 0:02:59.8]} 2. Nf3 {[%clk 0:03:00]} 2...
e6 {[%clk 0:03:00]} 3. d4 {[%clk 0:02:58.2]} 3... cxd4 {[%clk 0:03:00.1]} 4.
Nxd4 {[%clk 0:02:59.1]} 4... Nf6 {[%clk 0:03:00.4]} 5. Nc3 {[%clk 0:02:58.3]}
5... d6 {[%clk 0:03:00.7]} 6. g4 {[%clk 0:02:51.6]} 6... a6 {[%clk 0:03:00.8]}
7. g5 {[%clk 0:02:51.4]} 7... Nfd7 {[%clk 0:03:01.7]} 8. h4 {[%clk 0:02:48.6]}
8... b5 {[%clk 0:03:01.6]} 9. a3 {[%clk 0:02:48.2]} 9... Bb7 {[%clk 0:03:01.6]}
10. Be3 {[%clk 0:02:45.4]} 10... Nc6 {[%clk 0:03:01.5]} 11. h5 {[%clk
0:02:44.5]} 11... Rc8 {[%clk 0:02:59.7]} 12. Rh3 {[%clk 0:02:43]} 12... Nce5
{[%clk 0:02:58.2]} 13. g6 {[%clk 0:02:36.9]} 13... Nf6 {[%clk 0:02:57.8]} 14.
gxf7+ {[%clk 0:02:36.3]} 14... Kxf7 {[%clk 0:02:57.9]} 15. Qd2 {[%clk
0:02:27.7]} 15... Qa5 {[%clk 0:02:32.1]} 16. f4 {[%clk 0:02:22.6]} 16... Neg4
{[%clk 0:02:16.8]} 17. e5 {[%clk 0:02:21.7]} 17... Rxc3 {[%clk 0:02:08]} 18.
Qxc3 {[%clk 0:02:05.4]} 18... Qxc3+ {[%clk 0:02:07.4]} 19. bxc3 {[%clk
0:02:06.3]} 19... Nxe3 {[%clk 0:01:43.8]} 20. Rxe3 {[%clk 0:02:07.2]} 20... Nd5
{[%clk 0:01:26.8]} 21. Rf3 {[%clk 0:02:05.2]} 21... Nb6 {[%clk 0:01:21.5]} 22.
Rf2 {[%clk 0:02:05.2]} 22... Be7 {[%clk 0:01:19.3]} 23. O-O-O {[%clk 0:01:56.5]}
23... Rc8 {[%clk 0:01:18.2]} 24. Bh3 {[%clk 0:01:53.9]} 24... Bd5 {[%clk
0:01:15.3]} 25. f5 {[%clk 0:01:53.9]} 25... Bg5+ {[%clk 0:01:11.8]} 26. Kb2
{[%clk 0:01:51.9]} 26... Na4+ {[%clk 0:01:10.6]} 27. Ka1 {[%clk 0:01:51.8]}
27... Rxc3 {[%clk 0:01:08.7]} 28. fxe6+ {[%clk 0:01:51.5]} 28... Ke8 {[%clk
0:01:07.6]} 29. Rd3 {[%clk 0:01:48.1]} 29... dxe5 {[%clk 0:01:04.2]} 30. Nf5
{[%clk 0:01:43.6]} 30... Bf6 {[%clk 0:00:53.9]} 31. Rxc3 {[%clk 0:01:32.4]}
31... Nxc3 {[%clk 0:00:52.4]} 32. h6 {[%clk 0:01:33.3]} 32... gxh6 {[%clk
0:00:45.6]} 33. Nd6+ {[%clk 0:01:31.3]} 33... Ke7 {[%clk 0:00:45]} 34. Nc8+
{[%clk 0:01:30.7]} 34... Kd8 {[%clk 0:00:44.8]} 35. Rxf6 {[%clk 0:01:31]} 35...
Kxc8 {[%clk 0:00:42.4]} 36. e7+ {[%clk 0:01:31.2]} 1-0

[Event "*** Titled Tuesday Blitz"]
[Site "Chess.com"]
[Date "2020.04.07"]
[Round "5"]
[White "AsaHoffmann"]
[Black "powermove"]
[Result "0-1"]
[WhiteElo "2258"]
[BlackElo "1493"]
[TimeControl "180+1"]
[EndTime "13:54:24 PDT"]
[Termination "powermove won by resignation"]

1. d4 {[%clk 0:02:47.3]} 1... Nf6 {[%clk 0:02:59.1]} 2. Bg5 {[%clk 0:02:46.4]}
2... Ne4 {[%clk 0:02:57.7]} 3. Bf4 {[%clk 0:02:42.9]} 3... c5 {[%clk 0:02:55.6]}
4. f3 {[%clk 0:02:42.5]} 4... Nf6 {[%clk 0:02:51.8]} 5. dxc5 {[%clk 0:02:42.1]}
5... Qa5+ {[%clk 0:02:50.6]} 6. Nc3 {[%clk 0:02:41.5]} 6... Qxc5 {[%clk
0:02:50]} 7. e4 {[%clk 0:02:41.3]} 7... d6 {[%clk 0:02:43.4]} 8. Qd2 {[%clk
0:02:40.8]} 8... Nc6 {[%clk 0:02:42.1]} 9. Nb5 {[%clk 0:02:37.9]} 9... Qb6
{[%clk 0:02:40.9]} 10. Be3 {[%clk 0:02:36.3]} 10... Qd8 {[%clk 0:02:40]} 11. c4
{[%clk 0:02:35.9]} 11... g6 {[%clk 0:02:39.1]} 12. O-O-O {[%clk 0:02:32.6]}
12... Bg7 {[%clk 0:02:27.2]} 13. Ne2 {[%clk 0:02:28.3]} 13... O-O {[%clk
0:02:26.9]} 14. Nec3 {[%clk 0:02:27.2]} 14... a6 {[%clk 0:02:22.5]} 15. Na3
{[%clk 0:02:26.6]} 15... b5 {[%clk 0:02:15.1]} 16. cxb5 {[%clk 0:02:25.7]} 16...
axb5 {[%clk 0:02:14.9]} 17. Bxb5 {[%clk 0:02:24.2]} 17... Nb4 {[%clk 0:02:05]}
18. Bh6 {[%clk 0:02:20.7]} 18... Qc7 {[%clk 0:01:51.7]} 19. Bxg7 {[%clk
0:02:18.6]} 19... Nxa2+ {[%clk 0:01:50.4]} 20. Kb1 {[%clk 0:02:18]} 20... Nxc3+
{[%clk 0:01:50.1]} 21. Qxc3 {[%clk 0:02:16.5]} 21... Qxc3 {[%clk 0:01:47.4]} 22.
bxc3 {[%clk 0:02:15.2]} 22... Kxg7 {[%clk 0:01:46.4]} 23. Ka2 {[%clk 0:02:03.3]}
23... Be6+ {[%clk 0:01:45.9]} 24. c4 {[%clk 0:02:03.2]} 24... Rfb8 {[%clk
0:01:43.8]} 25. Kb3 {[%clk 0:01:57.9]} 25... Bxc4+ {[%clk 0:01:15.4]} 26. Nxc4
{[%clk 0:01:50.5]} 26... Rxb5+ {[%clk 0:01:13.4]} 27. Kc3 {[%clk 0:01:50.4]}
27... Rc8 {[%clk 0:01:10.7]} 28. Rc1 {[%clk 0:01:40.7]} 28... Rbc5 {[%clk
0:01:03.2]} 29. Kb4 {[%clk 0:01:27.8]} 29... d5 {[%clk 0:01:01.6]} 30. e5 {[%clk
0:01:26]} 30... Rxc4+ {[%clk 0:00:59.7]} 31. Rxc4 {[%clk 0:01:25.4]} 31... Rxc4+
{[%clk 0:00:59.6]} 32. Kb3 {[%clk 0:01:25.2]} 32... Nd7 {[%clk 0:00:58.6]} 33.
Rd1 {[%clk 0:01:22.5]} 33... e6 {[%clk 0:00:53]} 34. f4 {[%clk 0:01:20.8]} 34...
Rxf4 {[%clk 0:00:51.5]} 0-1

[Event "*** Titled Tuesday Blitz"]
[Site "Chess.com"]
[Date "2020.04.07"]
[Round "5"]
[White "DonPreuss"]
[Black "kasparicy"]
[Result "1-0"]
[WhiteElo "2173"]
[BlackElo "2319"]
[TimeControl "180+1"]
[EndTime "13:54:24 PDT"]
[Termination "DonPreuss won by resignation"]

1. d4 {[%clk 0:02:59.7]} 1... Nf6 {[%clk 0:02:59.1]} 2. Nc3 {[%clk 0:02:59.1]}
2... d5 {[%clk 0:02:57.8]} 3. e4 {[%clk 0:02:59.1]} 3... dxe4 {[%clk 0:02:57]}
4. f3 {[%clk 0:02:59.5]} 4... exf3 {[%clk 0:02:56.8]} 5. Nxf3 {[%clk 0:02:59.7]}
5... g6 {[%clk 0:02:57.7]} 6. Bd3 {[%clk 0:02:59.5]} 6... Bg7 {[%clk 0:02:58.2]}
7. O-O {[%clk 0:03:00]} 7... O-O {[%clk 0:02:58.8]} 8. Qe1 {[%clk 0:03:00.2]}
8... c5 {[%clk 0:02:59.3]} 9. Qh4 {[%clk 0:02:34.5]} 9... Nc6 {[%clk 0:02:52.4]}
10. dxc5 {[%clk 0:02:30.5]} 10... Qa5 {[%clk 0:02:48.5]} 11. Bh6 {[%clk
0:02:29]} 11... Qxc5+ {[%clk 0:02:47.5]} 12. Kh1 {[%clk 0:02:28.7]} 12... Qh5
{[%clk 0:02:47.3]} 13. Qxh5 {[%clk 0:02:20]} 13... Nxh5 {[%clk 0:02:48.2]} 14.
Bxg7 {[%clk 0:02:20.5]} 14... Kxg7 {[%clk 0:02:45.3]} 15. Rae1 {[%clk
0:02:07.3]} 15... Bd7 {[%clk 0:01:57.4]} 16. Ne5 {[%clk 0:02:03.1]} 16... Nxe5
{[%clk 0:01:53.4]} 17. Rxe5 {[%clk 0:02:04]} 17... e6 {[%clk 0:01:51.2]} 18. Be4
{[%clk 0:01:48.6]} 18... Rab8 {[%clk 0:01:47]} 19. Rc5 {[%clk 0:01:47.8]} 19...
Rfc8 {[%clk 0:01:43.6]} 20. Rxc8 {[%clk 0:01:46.7]} 20... Bxc8 {[%clk
0:01:44.5]} 21. Rd1 {[%clk 0:01:46.7]} 21... Nf6 {[%clk 0:01:41.3]} 22. Rd8
{[%clk 0:01:45.2]} 22... b5 {[%clk 0:01:36.7]} 23. Bf3 {[%clk 0:01:36]} 23... b4
{[%clk 0:01:33.5]} 24. Ne4 {[%clk 0:01:22.5]} 24... Nxe4 {[%clk 0:01:28.9]} 25.
Bxe4 {[%clk 0:01:22.2]} 25... f5 {[%clk 0:01:28.2]} 26. Bc6 {[%clk 0:01:20.4]}
26... b3 {[%clk 0:00:56.9]} 27. axb3 {[%clk 0:01:17]} 27... Kf6 {[%clk
0:00:52.2]} 28. Bd7 {[%clk 0:01:14.6]} 28... Ke7 {[%clk 0:00:47.5]} 29. Rxc8
{[%clk 0:01:14.4]} 29... Rb6 {[%clk 0:00:44.2]} 30. Ba4 {[%clk 0:01:08.6]} 1-0

[Event "*** Titled Tuesday Blitz"]
[Site "Chess.com"]
[Date "2020.04.07"]
[Round "5"]
[White "Fy_Rakotomaharo"]
[Black "Semen16"]
[Result "1-0"]
[WhiteElo "2595"]
[BlackElo "2402"]
[TimeControl "180+1"]
[EndTime "13:54:27 PDT"]
[Termination "Fy_Rakotomaharo won by resignation"]

1. e4 {[%clk 0:03:00.9]} 1... e5 {[%clk 0:02:59.4]} 2. Nf3 {[%clk 0:03:01]} 2...
Nc6 {[%clk 0:02:59.4]} 3. Bb5 {[%clk 0:03:01.2]} 3... a6 {[%clk 0:02:59]} 4. Ba4
{[%clk 0:03:01.1]} 4... Nf6 {[%clk 0:02:58.7]} 5. O-O {[%clk 0:03:00.7]} 5...
Be7 {[%clk 0:02:58.6]} 6. Re1 {[%clk 0:03:00.4]} 6... b5 {[%clk 0:02:58.4]} 7.
Bb3 {[%clk 0:03:00.9]} 7... O-O {[%clk 0:02:58.5]} 8. a4 {[%clk 0:03:01]} 8...
Rb8 {[%clk 0:02:55.5]} 9. axb5 {[%clk 0:02:42.5]} 9... axb5 {[%clk 0:02:56.4]}
10. c3 {[%clk 0:02:42.9]} 10... d6 {[%clk 0:02:47.4]} 11. d4 {[%clk 0:02:23.6]}
11... exd4 {[%clk 0:02:46]} 12. cxd4 {[%clk 0:02:22.1]} 12... Bg4 {[%clk
0:02:45.8]} 13. Nc3 {[%clk 0:02:07.6]} 13... Qd7 {[%clk 0:02:31.7]} 14. Be3
{[%clk 0:01:58.6]} 14... b4 {[%clk 0:02:29]} 15. Nd5 {[%clk 0:01:58.7]} 15...
Nxe4 {[%clk 0:02:24.7]} 16. Ba4 {[%clk 0:01:53.8]} 16... Bg5 {[%clk 0:01:53.5]}
17. Bxg5 {[%clk 0:01:31.1]} 17... Bxf3 {[%clk 0:01:44.3]} 18. Bxc6 {[%clk
0:01:19.3]} 18... Qxc6 {[%clk 0:01:11.6]} 19. Ne7+ {[%clk 0:01:17.6]} 19... Kh8
{[%clk 0:01:11.8]} 20. Nxc6 {[%clk 0:01:17.4]} 20... Bxd1 {[%clk 0:01:11.3]} 21.
Nxb8 {[%clk 0:00:58.5]} 21... Nxg5 {[%clk 0:01:09.2]} 22. Nd7 {[%clk 0:00:55.9]}
22... Rd8 {[%clk 0:01:08.6]} 23. Raxd1 {[%clk 0:00:54.9]} 23... h6 {[%clk
0:01:01.2]} 24. h4 {[%clk 0:00:51.4]} 24... Ne6 {[%clk 0:00:56.9]} 25. d5 {[%clk
0:00:51.3]} 25... Nf4 {[%clk 0:00:57.1]} 26. g3 {[%clk 0:00:50.7]} 26... Ng6
{[%clk 0:00:56.2]} 27. h5 {[%clk 0:00:51]} 1-0

[Event "*** Titled Tuesday Blitz"]
[Site "Chess.com"]
[Date "2020.04.07"]
[Round "5"]
[White "Cukiero"]
[Black "Tayson_7"]
[Result "0-1"]
[WhiteElo "2518"]
[BlackElo "2728"]
[TimeControl "180+1"]
[EndTime "13:54:31 PDT"]
[Termination "Tayson_7 won by resignation"]

1. e4 {[%clk 0:03:00.9]} 1... e5 {[%clk 0:02:59.3]} 2. Nf3 {[%clk 0:03:00.3]}
2... Nc6 {[%clk 0:03:00.2]} 3. Bb5 {[%clk 0:03:00.1]} 3... a6 {[%clk 0:03:00.5]}
4. Ba4 {[%clk 0:03:00.4]} 4... Nf6 {[%clk 0:03:00.3]} 5. O-O {[%clk 0:03:00.3]}
5... Be7 {[%clk 0:02:59.7]} 6. Re1 {[%clk 0:03:00.4]} 6... b5 {[%clk 0:02:59.5]}
7. Bb3 {[%clk 0:03:00.5]} 7... d6 {[%clk 0:03:00.1]} 8. c3 {[%clk 0:02:59.6]}
8... O-O {[%clk 0:03:00.3]} 9. h3 {[%clk 0:03:00.1]} 9... Bb7 {[%clk 0:03:00.8]}
10. d4 {[%clk 0:03:00.1]} 10... Re8 {[%clk 0:03:01.4]} 11. Nbd2 {[%clk
0:02:56.9]} 11... Bf8 {[%clk 0:03:01.3]} 12. Nf1 {[%clk 0:02:36.4]} 12... Na5
{[%clk 0:02:52.3]} 13. d5 {[%clk 0:02:16.1]} 13... Nxb3 {[%clk 0:02:44.4]} 14.
axb3 {[%clk 0:02:17]} 14... h6 {[%clk 0:02:33.2]} 15. g4 {[%clk 0:01:59.8]}
15... c6 {[%clk 0:02:17]} 16. g5 {[%clk 0:01:55.2]} 16... hxg5 {[%clk 0:02:14]}
17. dxc6 {[%clk 0:01:55.4]} 17... Bxc6 {[%clk 0:02:12.5]} 18. Bxg5 {[%clk
0:01:55.9]} 18... Be7 {[%clk 0:02:07.1]} 19. Ng3 {[%clk 0:01:51.8]} 19... g6
{[%clk 0:02:07]} 20. h4 {[%clk 0:01:40.1]} 20... Nh7 {[%clk 0:02:01.8]} 21. Bxe7
{[%clk 0:01:35.1]} 21... Qxe7 {[%clk 0:02:02.7]} 22. Qd2 {[%clk 0:01:17.7]}
22... Bb7 {[%clk 0:01:56.5]} 23. Qh6 {[%clk 0:01:08.8]} 23... Qf8 {[%clk
0:01:54.5]} 24. Qe3 {[%clk 0:01:07.6]} 24... Rad8 {[%clk 0:01:52.8]} 25. h5
{[%clk 0:01:05.9]} 25... d5 {[%clk 0:01:42.8]} 26. exd5 {[%clk 0:01:05.5]} 26...
Rxd5 {[%clk 0:01:43.7]} 27. hxg6 {[%clk 0:01:04.4]} 27... fxg6 {[%clk
0:01:43.4]} 28. Nh4 {[%clk 0:00:56.3]} 28... Qf6 {[%clk 0:01:35.7]} 29. Qh6
{[%clk 0:00:49.2]} 29... Rd6 {[%clk 0:01:34]} 30. Ne4 {[%clk 0:00:44.1]} 30...
Bxe4 {[%clk 0:01:30.2]} 31. Rxe4 {[%clk 0:00:45]} 31... Rf8 {[%clk 0:01:27.5]}
32. Rf1 {[%clk 0:00:43.9]} 32... g5 {[%clk 0:01:26.8]} 33. Qxf6 {[%clk
0:00:41.1]} 33... Nxf6 {[%clk 0:01:27.7]} 34. Rxe5 {[%clk 0:00:36.5]} 34... gxh4
{[%clk 0:01:28]} 35. f4 {[%clk 0:00:36.8]} 35... Kf7 {[%clk 0:01:26.8]} 36. Rg5
{[%clk 0:00:35.9]} 0-1